fUST/lending_fUST_20240501
["ID","MTS","AMOUNT","RATE_DAILY","PERIOD"]
[325187188,1714557043735,-500.0,0.00057534,120]
[325187189,1714557043745,-1087.34,0.00057534,120]
[325187190,1714557043754,-500.0,0.00057534,120]
[325187191,1714557043763,-500.0,0.00057534,120]
[325187192,1714557043772,-500.0,0.00057534,120]
[325187193,1714557043782,-500.0,0.00057534,120]
[325187194,1714557043791,-500.0,0.00057534,120]
[325187195,1714557043799,-503.21217433,0.00057534,120]
[325187196,1714557043809,-897.74,0.00057534,120]
[325187197,1714557043818,-500.0,0.00057534,120]
[325187198,1714557043827,-500.0,0.00057534,120]
[325187199,1714557043837,-1612.5,0.00057534,120]
[325187200,1714557043846,-1239.41,0.00057534,120]
[325187201,1714557043855,-500.0,0.00057534,120]
[325187202,1714557043865,-500.0,0.00057534,120]
[325187203,1714557043874,-500.0,0.00057534,120]
[325187204,1714557043884,-500.0,0.00057534,120]
[325187205,1714557043896,-500.0,0.00057534,120]
[325187206,1714557043905,-498.19924136,0.00057534,120]
[325187207,1714557043914,-500.0,0.00057534,120]
[325187208,1714557043924,-907.37,0.00057534,21]
[325187209,1714557043933,-500.0,0.00057534,120]
[325187210,1714557043942,-32.85761223,0.00057534,120]
[325187212,1714557044076,-576.91692845,0.00057534,120]
[325187213,1714557044086,-500.0,0.00057534,120]
[325187214,1714557044095,-500.0,0.00057534,120]
[325187215,1714557044104,-423.08307155,0.00057534,120]
[325187216,1714557044120,-76.91692845,0.00057534,120]
[325187217,1714557044129,-500.0,0.00057534,120]
[325187218,1714557044140,-500.0,0.00057534,120]
[325187219,1714557044149,-500.0,0.00057534,120]
[325187220,1714557044158,-356.01307155,0.00057534,120]
[325187221,1714557044169,-143.98692845,0.00057534,120]
[325187222,1714557044178,-429.71307155,0.00057534,120]
[325187223,1714557044283,-70.28692845,0.00057534,120]
[325187224,1714557044292,-2747.15,0.00057534,120]
[325187226,1714557044302,-4643.43692627,0.00057534,120]
[325187228,1714557044313,-1092.01307373,0.00057534,120]
[325187231,1714557044323,-500.0,0.00057534,120]
[325187234,1714557044332,-200.85840953,0.00057534,120]
[325187237,1714557044341,-1322.1227386,0.00057534,120]
[325187262,1714557044816,-2000.0,0.00035416,2]
[325187264,1714557044825,-8803.82,0.00035616,3]
[325187266,1714557044835,-21223.5872614,0.00057534,120]
[325187268,1714557044844,-854.48,0.00057534,120]
[325187269,1714557044853,-500.0,0.00057534,120]
[325187270,1714557044862,-500.0,0.00057534,120]
[325187271,1714557044871,-500.0,0.00057534,120]
[325187272,1714557044880,-500.0,0.00057534,120]
[325187273,1714557044889,-500.0,0.00057534,120]
[325187274,1714557044898,-1147.0,0.00057534,120]
[325187275,1714557044907,-620.7,0.00057534,120]
[325187276,1714557044916,-500.0,0.00057534,120]
[325187277,1714557044925,-865.37,0.00057534,120]
[325187278,1714557044934,-500.0,0.00057534,120]
[325187279,1714557044944,-1185.79,0.00057534,120]
[325187280,1714557044953,-1904.39,0.00057534,120]
[325187281,1714557044962,-698.85,0.00057534,120]
[325187282,1714557044971,-300.0,0.00057534,7]
[325187283,1714557044980,-1609.62,0.00057534,120]
[325187284,1714557044990,-500.0,0.00057534,120]
[325187285,1714557044999,-536.19,0.00057534,120]
[325187286,1714557045008,-1401.51,0.00057534,120]
[325187287,1714557045017,-500.0,0.00057534,120]
[325187288,1714557045026,-500.0,0.00057534,120]
[325187289,1714557045035,-620.06,0.00057534,120]
[325187290,1714557045045,-500.0,0.00057534,120]
[325187291,1714557045054,-500.0,0.00057534,120]
[325187292,1714557045063,-500.0,0.00057534,120]
[325187293,1714557045072,-500.0,0.00057534,120]
[325187294,1714557045081,-500.0,0.00057534,120]
[325187295,1714557045091,-403.73487081,0.00057534,120]
[325187296,1714557045100,-500.0,0.00057534,120]
[325187297,1714557045109,-500.0,0.00057534,120]
[325187298,1714557045119,-500.0,0.00057534,120]
[325187299,1714557045128,-1000.0,0.00057534,120]
[325187300,1714557045139,-685.06,0.00057534,120]
[325187301,1714557045148,-500.0,0.00057534,120]
[325187302,1714557045157,-500.0,0.00057534,120]
[325187303,1714557045166,-500.0,0.00057534,120]
[325187304,1714557045175,-500.0,0.00057534,120]
[325187305,1714557045184,-500.0,0.00057534,120]
[325187306,1714557045194,-650.81,0.00057534,120]
[325187307,1714557045203,-181.0972047,0.00057534,120]
[325187308,1714557045212,-500.0,0.00057534,120]
[325187309,1714557045221,-500.0,0.00057534,120]
[325187310,1714557045230,-500.0,0.00057534,120]
[325187311,1714557045240,-5781.67,0.00057534,120]
[325187312,1714557045250,-500.0,0.00057534,120]
[325187313,1714557045259,-501.21325166,0.00057534,120]
[325187314,1714557045268,-698.42,0.00057534,120]
[325187315,1714557045277,-500.0,0.00057534,120]
[325187316,1714557045287,-500.0,0.00057534,120]
[325187317,1714557045296,-2673.99,0.00057534,120]
[325187318,1714557045305,-2673.99,0.00057534,120]
[325187319,1714557045314,-2673.99,0.00057534,120]
[325187320,1714557045324,-2673.99,0.00057534,120]
[325187321,1714557045333,-500.0,0.00057534,120]
[325187322,1714557045342,-2673.99,0.00057534,120]
[325187323,1714557045351,-2673.99,0.00057534,120]
[325187324,1714557045361,-2673.99,0.00057534,120]
[325187325,1714557045370,-3120.13,0.00057534,120]
[325187326,1714557045379,-2673.99,0.00057534,120]
[325187327,1714557045389,-2673.99,0.00057534,120]
[325187328,1714557045398,-2673.99,0.00057534,120]
[325187329,1714557045407,-2673.99,0.00057534,120]
[325187330,1714557045416,-2673.99,0.00057534,120]
[325187331,1714557045425,-2673.99,0.00057534,120]
[325187332,1714557045433,-2045.49066888,0.00057534,120]
[325187333,1714557045446,-628.49933112,0.00057534,120]
[325187334,1714557045455,-2673.99,0.00057534,120]
[325187335,1714557045464,-500.0,0.00057534,120]
[325187336,1714557045474,-500.0,0.00057534,120]
[325187337,1714557045483,-832.09074049,0.00057534,120]
[325187338,1714557045494,-18.36925951,0.00057534,120]
[325187339,1714557045510,-332.63072549,0.00057534,120]
[325187354,1714557046384,-167.36927451,0.00057534,120]
[325187355,1714557046394,-404.72072549,0.00057534,120]
[325187356,1714557046406,-2284.00927451,0.00057534,120]
[325187357,1714557046415,-500.0,0.00057534,120]
[325187358,1714557046424,-1092.3,0.00057534,120]
[325187359,1714557046434,-500.0,0.00057534,120]
[325187360,1714557046443,-500.0,0.00057534,120]
[325187361,1714557046451,-500.0,0.00057534,120]
[325187362,1714557046461,-777.61,0.00057534,120]
[325187363,1714557046470,-500.0,0.00057534,120]
[325187364,1714557046479,-500.0,0.00057534,120]
[325187365,1714557046488,-523.44721829,0.00057534,120]
[325187366,1714557046498,-3795.35,0.00057534,120]
[325187367,1714557046508,-500.0,0.00057534,120]
[325187368,1714557046519,-500.0,0.00057534,120]
[325187369,1714557046528,-500.54506639,0.00057534,120]
[325187370,1714557046537,-500.0,0.00057534,120]
[325187371,1714557046548,-500.0,0.00057534,120]
[325187372,1714557046559,-500.0,0.00057534,120]
[325187373,1714557046568,-500.0,0.00057534,120]
[325187374,1714557046578,-500.0,0.00057534,120]
[325187375,1714557046590,-500.0,0.00057534,120]
[325187376,1714557046600,-1416.98,0.00057534,120]
[325187377,1714557046610,-500.0,0.00057534,120]
[325187378,1714557046620,-500.0,0.00057534,120]
[325187379,1714557046629,-500.0,0.00057534,120]
[325187380,1714557046638,-500.0,0.00057534,120]
[325187381,1714557046650,-500.0,0.00057534,120]
[325187382,1714557046660,-500.0,0.00057534,120]
[325187383,1714557046670,-1445.03,0.00057534,120]
[325187384,1714557046679,-1272.63,0.00057534,120]
[325187385,1714557046689,-667.69,0.00057534,120]
[325187386,1714557046700,-500.0,0.00057534,60]
[325187387,1714557046710,-500.0,0.00057534,120]
[325187388,1714557046722,-500.0,0.00057534,120]
[325187389,1714557046732,-2785.63,0.00057534,120]
[325187390,1714557046742,-500.0,0.00057534,120]
[325187391,1714557046753,-548.48,0.00057534,120]
[325187392,1714557046762,-500.0,0.00057534,120]
[325187393,1714557046772,-571.25,0.00057534,120]
[325187394,1714557046781,-477.38311973,0.00057534,120]
[325187395,1714557046790,-870.02,0.00057534,120]
[325187396,1714557046799,-500.0,0.00057534,120]
[325187397,1714557046808,-7189.75,0.00057534,120]
[325187398,1714557046818,-500.0,0.00057534,120]
[325187399,1714557046827,-500.0,0.00057534,120]
[325187400,1714557046836,-654.43,0.00057534,120]
[325187401,1714557046846,-500.0,0.00057534,120]
[325187402,1714557046855,-500.0,0.00057534,120]
[325187403,1714557046865,-500.0,0.00057534,120]
[325187404,1714557046875,-500.0,0.00057534,120]
[325187405,1714557046884,-369.01831701,0.00057534,120]
[325187406,1714557046894,-10830.65,0.00057534,120]
[325187407,1714557046904,-500.0,0.00057534,120]
[325187408,1714557046913,-14361.77,0.00057534,120]
[325187409,1714557046922,-500.0,0.00057534,120]
[325187410,1714557046932,-171.57381028,0.00057534,120]
[325187411,1714557046941,-500.0,0.00057534,120]
[325187412,1714557046950,-662.78,0.00057534,120]
[325187413,1714557046959,-500.0,0.00057534,120]
[325187414,1714557046969,-500.0,0.00057534,120]
[325187415,1714557046977,-500.0,0.00057534,120]
[325187416,1714557046986,-607.97128,0.00057987,2]
[325187417,1714557046995,-151.0,0.00058055,120]
[325187418,1714557047004,-153.69519904,0.0005841,120]
[325187419,1714557047014,-240.18860609,0.00058604,120]
[325187420,1714557047022,-240.18860609,0.00058928,120]
[325187421,1714557047031,-151.0,0.00058986,120]
[325187422,1714557047041,-2673.99,0.00058999,120]
[325187423,1714557047050,-30706.50308928,0.00059,2]
[325187424,1714557047059,-1968.0,0.00059,30]
[325187425,1714557047068,-877.768,0.00059,110]
[325187426,1714557047076,-356.580365,0.00059034,2]
[325187427,1714557047085,-307.872597,0.00059034,2]
[325187428,1714557047095,-271.878249,0.00059034,2]
[325187429,1714557047104,-607.97129,0.00059082,2]
[325187430,1714557047113,-151.0,0.00059918,120]
[325187431,1714557047122,-2673.99,0.00059999,120]
[325187432,1714557047132,-2673.99,0.00059999,120]
[325187433,1714557047142,-2673.99,0.00059999,120]
[325187434,1714557047151,-9706.98060604,0.0006,30]
[325187517,1714557750579,717.98897193,9.999e-05,2]
[325187518,1714558006104,-250.01539903,0.00018814,2]
[325187555,1714558233891,-682.81356657,0.00018714,2]
[325187594,1714558239056,-35.17540536,0.00018714,2]
[325187596,1714558239065,-163.89776702,0.00018715,2]
[325187598,1714558239075,-768.8594876,0.00018815,2]
[325187599,1714558239084,-313.76711919,0.00019178,2]
[325187600,1714558239093,-188.75488439,0.00019178,2]
[325187601,1714558239103,-244.31277073,0.00019178,2]
[325187602,1714558239112,-9378.45996285,0.0001936,2]
[325187603,1714558239121,-24900.0,0.00019361,2]
[325187604,1714558239130,-1407.4015634,0.00019538,2]
[325187605,1714558239140,-160.92208,0.00019638,2]
[325187606,1714558239150,-241.74656629,0.0002,2]
[325187607,1714558239159,-5461.4995396,0.00020905,2]
[325187608,1714558239168,-208.11576567,0.00020906,2]
[325187609,1714558239178,-155.30686759,0.00020906,2]
[325187610,1714558239187,-247.85703584,0.00020906,2]
[325187611,1714558239196,-198.5417614,0.00020906,2]
[325187612,1714558239205,-264.50562392,0.00020906,2]
[325187613,1714558239214,-638.01745265,0.00020907,2]
[325187614,1714558239223,-59226.73956329,0.00020908,2]
[325187615,1714558239232,-250.00871116,0.00020909,2]
[325187616,1714558239241,-718.64799646,0.00020912,2]
[325187617,1714558239251,-1011.5118697,0.00020913,2]
[325187618,1714558239260,-64275.14958198,0.00020913,2]
[325187619,1714558239269,-163.89776702,0.00021718,2]
[325187620,1714558239278,-546.52399875,0.00021818,2]
[325187621,1714558239287,-166.666666,0.00021918,2]
[325187622,1714558239296,-159.24114282,0.00022,2]
[325187623,1714558239305,-262.6099373,0.00022,2]
[325187624,1714558239316,-166.666666,0.00022431,2]
[325187626,1714558239325,-166.666666,0.00022944,2]
[325187628,1714558239335,-714.26625523,0.00023,2]
[325187630,1714558239344,-166.666666,0.00023456,2]
[325187632,1714558239354,-166.666666,0.00023969,2]
[325187634,1714558239364,-166.666666,0.00024482,2]
[325187636,1714558239373,-154.67518212,0.00025,2]
[325187637,1714558239383,-1407.40156336,0.00028161,4]
[325187638,1714558239393,-546.52399875,0.00029951,2]
[325187639,1714558239402,-638.88710828,0.00032,4]
[325187640,1714558239411,-300.00000002,0.00032,3]
[325187641,1714558239421,-5000.0,0.00033,4]
[325187642,1714558239431,-523.15115388,0.00033,2]
[325187643,1714558239440,-466.46671286,0.00034,4]
[325187644,1714558239449,-1271.86176283,0.00034728,12]
[325187645,1714558239459,-26910.69445433,0.000349,2]
[325187646,1714558239468,-1000.0,0.000349,3]
[325187647,1714558239477,-154.67518212,0.00035,4]
[325187648,1714558239486,-597.98045973,0.00035,2]
[325187649,1714558239495,-5917.45193267,0.00035,4]
[325187650,1714558239506,-503.01188397,0.00035,30]
[325187651,1714558239515,-425.45157815,0.00035,10]
[325187652,1714558239525,-1753.71255042,0.00035,30]
[325187653,1714558239534,-476.21581751,0.00035,30]
[325187654,1714558239544,-1608.46290676,0.00035516,2]
[325187655,1714558239554,-6487.39,0.00035616,3]
[325187656,1714558239563,-10128.97,0.00035616,3]
[325187657,1714558239572,-28601.1760015,0.00036,2]
[325187658,1714558239581,-1407.40156336,0.00036784,8]
[325187659,1714558239591,-2049.08470554,0.00037,2]
[325187660,1714558239600,-10664.09300882,0.00037,5]
[325187661,1714558239609,-239.19602788,0.00038,30]
[325187662,1714558239618,-546.52399875,0.00038083,2]
[325187663,1714558239627,-611.0408,0.0003925,2]
[325187664,1714558239637,-611.0408,0.00039957,2]
[325187665,1714558239648,-13070.43405355,0.0004,7]
[325187674,1714558240724,-503.01188397,0.0004,7]
[325187675,1714558240735,-3299.8897983,0.0004,7]
[325187741,1714558243975,-558.4726932,0.00020809,2]
[325187743,1714558243985,-2296.5273068,0.0004,7]
[325187744,1714558244007,-264.50562392,0.0004,7]
[325187797,1714558246554,-1140.4,0.0004,7]
[325187805,1714559352221,-9546.25572004,0.00013,2]
[325187806,1714559352243,-160.92208,0.0001985,2]
[325187807,1714559352264,-160.633135,0.00020726,2]
[325187808,1714559352286,-466.16787958,0.00020912,2]
[325187809,1714559352308,-9378.45996285,0.00020913,2]
[325187810,1714559352330,-24900.0,0.00021759,2]
[325187811,1714559352349,-1055.55117252,0.00021818,2]
[325187812,1714559352369,-166.666666,0.00021918,2]
[325187813,1714559352389,-166.666666,0.00022431,2]
[325187814,1714559352409,-166.666666,0.00022944,2]
[325187815,1714559352428,-714.26625523,0.00023,2]
[325187816,1714559352448,-166.666666,0.00023456,2]
[325187817,1714559352470,-166.666666,0.00023969,2]
[325187818,1714559352491,-166.666666,0.00024482,2]
[325187819,1714559352511,-154.70605849,0.00025,2]
[325187820,1714559352530,-1055.55117252,0.00030037,4]
[325187821,1714559352549,-638.88710828,0.00032,4]
[325187822,1714559352571,-466.46671286,0.00034,4]
[325187823,1714559352590,-160.616438,0.00034297,2]
[325187824,1714559352610,-620.0,0.00034516,2]
[325187825,1714559352637,-5917.45193267,0.00035,4]
[325187826,1714559352663,-214.65163076,0.00035,4]
[325187827,1714559352684,-854.25779961,0.00035,2]
[325187828,1714559352704,-508.043069,0.00035616,120]
[325187829,1714559352725,-620.0,0.00036241,2]
[325187830,1714559352748,-10664.09300882,0.00037,5]
[325187831,1714559352768,-2049.08470554,0.00037,2]
[325187832,1714559352789,-528.76512032,0.00038,2]
[325187833,1714559352811,-620.0,0.00038053,2]
[325187834,1714559352831,-1055.55117252,0.00038256,8]
[325187835,1714559352852,-608.84033,0.00039222,2]
[325187836,1714559352872,-608.84033,0.00039725,2]
[325187837,1714559352892,-682.81356657,0.000398,60]
[325187838,1714559352914,-620.0,0.00039956,2]
[325187839,1714559352935,-5104.97968368,0.0004,4]
[325187840,1714559352956,-1000.0,0.0004,3]
[325187841,1714559352975,-1162.28244802,0.0004,4]
[325187842,1714559352995,-2402.29988518,0.0004,2]
[325187843,1714559353014,-607.91840391,0.0004,2]
[325187844,1714559353035,-956.61782471,0.0004,10]
[325187845,1714559353056,-363.95014905,0.0004,2]
[325187846,1714559353076,-608.84034,0.00040228,2]
[325187847,1714559353097,-608.84033,0.00040731,2]
[325187848,1714559353117,-315.93873987,0.00041,2]
[325187849,1714559353138,-608.84034,0.00041234,2]
[325187850,1714559353159,-508.043069,0.00041553,120]
[325187851,1714559353179,-608.84033,0.00041736,2]
[325187852,1714559353203,-608.84034,0.00042239,2]
[325187853,1714559353439,-154.70605849,0.0004234,10]
[325187854,1714559353460,-1695.41656809,0.000425,30]
[325187855,1714559353481,-733.9260505,0.00042551,30]
[325187856,1714559353501,-608.84033,0.00042742,2]
[325187857,1714559353522,-608.84034,0.00043245,2]
[325187858,1714559353545,-10296.83,0.0004347,3]
[325187859,1714559353567,-6594.89,0.0004348,3]
[325187860,1714559353587,-418.28846301,0.000435,7]
[325187861,1714559353608,-418.28846301,0.000435,7]
[325187862,1714559353627,-418.28846301,0.000435,7]
[325187863,1714559353646,-418.28846301,0.000435,7]
[325187864,1714559353665,-418.28846301,0.000435,7]
[325187865,1714559353684,-418.28846301,0.000435,7]
[325187866,1714559353704,-418.28846301,0.000435,7]
[325187867,1714559353723,-418.28846301,0.000435,7]
[325187868,1714559353742,-418.28846301,0.000435,7]
[325187869,1714559353762,-418.28846,0.000435,7]
[325187870,1714559353781,-500.0,0.00043543,31]
[325187871,1714559353801,-500.0,0.00043543,31]
[325187872,1714559353824,-500.0,0.00043543,31]
[325187873,1714559353844,-500.0,0.00043543,31]
[325187874,1714559353864,-427.92517591,0.00043543,31]
[325187875,1714559353884,-608.84033,0.00043748,2]
[325187876,1714559353905,-608.84034,0.00044251,2]
[325187877,1714559353927,-1522.2,0.00044647,3]
[325187878,1714559353946,-159.71048373,0.00044647,120]
[325187879,1714559353965,-608.84033,0.00044754,2]
[325187880,1714559353985,-1531.45781548,0.00045,4]
[325187881,1714559354006,-151.0,0.00045,120]
[325187882,1714559354026,-154.76784823,0.00045,15]
[325187883,1714559354046,-608.84034,0.00045256,2]
[325187884,1714559354067,-151.0,0.00045589,120]
[325187885,1714559354087,-608.84033,0.00045759,2]
[325187886,1714559354107,-151.0,0.00046164,120]
[325187887,1714559354127,-608.84034,0.00046262,2]
[325187888,1714559354146,-1055.55117252,0.00046475,12]
[325187889,1714559354165,-262.41932734,0.000467,56]
[325187890,1714559354185,-262.41932733,0.000467,56]
[325187891,1714559354206,-500.0,0.000467,56]
[325187892,1714559354227,-151.0,0.0004674,120]
[325187893,1714559354246,-608.84033,0.00046765,2]
[325187894,1714559354266,-154.76784823,0.00046998,4]
[325187895,1714559354288,-150.69860279,0.00047255,2]
[325187896,1714559354309,-608.84034,0.00047268,2]
[325187897,1714559354330,-151.0,0.00047315,120]
[325187898,1714559354349,-508.043069,0.00047489,120]
[325187899,1714559354369,-608.84033,0.00047771,2]
[325187900,1714559354388,-151.0,0.0004789,120]
[325187901,1714559354408,-475.3346953,0.00047927,4]
[325187902,1714559354428,-327.91439925,0.00048004,2]
[325187903,1714559354448,-5000.0,0.00048055,30]
[325187904,1714559354467,-353.35134806,0.00048104,120]
[325187905,1714559354488,-441.28766851,0.00048104,120]
[325187906,1714559354508,-441.28766851,0.00048104,120]
[325187907,1714559354528,-228.9556464,0.00048104,120]
[325187908,1714559354548,-608.84033,0.00048274,2]
[325187909,1714559354569,-151.0,0.00048466,120]
[325187910,1714559354589,-5374.0,0.0004874,60]
[325187911,1714559354610,-608.84034,0.00048776,2]
[325187912,1714559354630,-162.0,0.00049,90]
[325187913,1714559354651,-151.0,0.00049041,120]
[325187914,1714559354670,-1072.30849183,0.00049122,4]
[325187915,1714559354690,-608.84033,0.00049279,2]
[325187916,1714559354710,-327.91439925,0.00049429,2]
[325187917,1714559354730,-341.96383608,0.0004956,4]
[325187918,1714559354749,-1000.0,0.00049561,30]
[325187919,1714559354769,-1000.0,0.00049562,30]
[325187920,1714559354788,-151.0,0.00049616,120]
[325187921,1714559354808,-608.84034,0.00049782,2]
[325187922,1714559354830,-169.162974,0.00049863,2]
[325187923,1714559354850,-158.118264,0.00049863,2]
[325187924,1714559354870,-439.685656,0.00049863,2]
[325187925,1714559354893,-261.691707,0.00049863,2]
[325187926,1714559354912,-164.66079013,0.000499,15]
[325187927,1714559354932,-403.55519046,0.000499,83]
[325187928,1714559354952,-8562.38280706,0.0005,120]
[325187929,1714559354971,-154.67518212,0.0005,30]
[325187930,1714559354990,-567.93751804,0.0005,7]
[325187931,1714559355010,-151.0,0.0005,120]
[325187932,1714559355029,-325.72513401,0.0005,30]
[325187933,1714559355049,-151.0,0.00050192,120]
[325187934,1714559355071,-608.84033,0.00050285,2]
[325187935,1714559355090,-150.0,0.000503,30]
[325187936,1714559355109,-967.87516776,0.000506,30]
[325187937,1714559364162,-315.93873987,0.00041,2]
[325187938,1714559364185,-8580.69,0.0004346,3]
[325187939,1714559364212,-209.14423165,0.000457,7]
[325187940,1714559364235,-209.14423165,0.000457,7]
[325187941,1714559364255,-32.12483224,0.000506,30]
[325187942,1714559364277,-151.0,0.00050767,120]
[325187943,1714559364302,-608.84034,0.00050788,2]
[325187944,1714559364325,-327.91439925,0.00050855,2]
[325187945,1714559364348,-150.0,0.00051,85]
[325187946,1714559364372,-314.13557534,0.0005115,4]
[325187987,1714559434572,-372.3151288,0.000349,2]
[325187990,1714559434582,-608.84033,0.0003919,2]
[325187993,1714559434591,-363.77625771,0.0004,2]
[325187996,1714559434601,-608.84033,0.00040123,2]
[325187999,1714559434610,-252.7509919,0.00041,2]
[325188001,1714559434619,-608.84034,0.00041056,2]
[325188003,1714559434629,-608.84033,0.00041989,2]
[325188004,1714559434638,-608.84034,0.00042923,2]
[325188006,1714559434647,-18708.98146669,0.00043545,7]
[325188009,1714559434656,-250.0,0.00043545,7]
[325188010,1714559434666,-250.0,0.00043545,14]
[325188013,1714559434675,-165.8168504,0.00043545,48]
[325188014,1714559434685,-165.8168504,0.00043545,48]
[325188016,1714559434695,-165.8168504,0.00043545,48]
[325188018,1714559434704,-500.0,0.00043545,14]
[325188020,1714559434713,-502.90835576,0.00043545,15]
[325188022,1714559434722,-372.31512878,0.00043548,2]
[325188024,1714559434731,-608.84033,0.00043856,2]
[325188026,1714559434740,-608.84034,0.00044789,2]
[325188028,1714559434749,-1395.3,0.00045381,3]
[325188030,1714559434759,-209.14423165,0.000457,7]
[325188032,1714559434768,-209.14423165,0.000457,7]
[325188034,1714559434778,-209.14423165,0.000457,7]
[325188036,1714559434787,-209.14423165,0.000457,7]
[325188038,1714559434796,-209.14423165,0.000457,7]
[325188040,1714559434805,-209.14423165,0.000457,7]
[325188042,1714559434814,-209.14423165,0.000457,7]
[325188044,1714559434824,-209.14423165,0.000457,7]
[325188046,1714559434833,-209.14423165,0.000457,7]
[325188048,1714559434842,-209.14423165,0.000457,7]
[325188050,1714559434851,-209.14423165,0.000457,7]
[325188052,1714559434860,-209.14423165,0.000457,7]
[325188053,1714559434870,-209.14423165,0.000457,7]
[325188054,1714559434879,-209.14423165,0.000457,7]
[325188055,1714559435057,-209.14423165,0.000457,7]
[325188056,1714559435067,-209.14423165,0.000457,7]
[325188057,1714559435076,-209.14423165,0.000457,7]
[325188058,1714559435086,-209.14423,0.000457,7]
[325188059,1714559435095,-608.84033,0.00045722,2]
[325188060,1714559435104,-608.84034,0.00046655,2]
[325188061,1714559435113,-608.84033,0.00047588,2]
[325188062,1714559435123,-608.84034,0.00048521,2]
[325188063,1714559435132,-608.84033,0.00049454,2]
[325188064,1714559435143,-154.70605849,0.0005,30]
[325188065,1714559435153,-2849.42634928,0.0005,30]
[325188127,1714559440157,-287.3039848,0.00035198,2]
[325188141,1714559440967,-24612.6960152,0.00035198,2]
[325188143,1714559440976,-169.347689,0.00035616,120]
[325188145,1714559440986,-169.347689,0.00044521,120]
[325188147,1714559440995,-6762.80220876,0.00049453,4]
[325188149,1714559441005,-37449.57365072,0.0005,30]
[325188151,1714559441014,-6581.00549603,0.0005,120]
[325188152,1714559441023,-608.84034,0.00050387,2]
[325188153,1714559441032,-685.35915968,0.0005115,4]
[325188154,1714559441041,-1162.28244802,0.0005115,4]
[325188155,1714559441050,-203.8574549,0.00051183,2]
[325188156,1714559441059,-203.8574549,0.00051183,2]
[325188157,1714559441068,-608.84033,0.0005132,2]
[325188158,1714559441077,-153.0,0.00051337,2]
[325188159,1714559441086,-153.0,0.00051337,2]
[325188160,1714559441096,-153.0,0.00051337,2]
[325188161,1714559441105,-153.0,0.00051337,2]
[325188162,1714559441117,-153.0,0.00051337,2]
[325188163,1714559441126,-151.0,0.00051342,120]
[325188164,1714559441135,-341.557252,0.00051375,2]
[325188165,1714559441146,-153.0,0.00051474,2]
[325188166,1714559441156,-153.0,0.00051474,2]
[325188167,1714559441165,-153.0,0.00051474,2]
[325188168,1714559441174,-153.0,0.00051474,2]
[325188169,1714559441183,-153.0,0.00051474,2]
[325188170,1714559441192,-153.0,0.00051474,2]
[325188171,1714559441201,-153.0,0.00051474,2]
[325188172,1714559441213,-153.0,0.00051474,2]
[325188173,1714559441223,-153.0,0.00051474,2]
[325188174,1714559441232,-153.0,0.00051474,2]
[325188175,1714559441241,-153.0,0.00051474,2]
[325188176,1714559441251,-306.0,0.00051474,2]
[325188177,1714559441260,-153.0,0.00051474,2]
[325188178,1714559441268,-153.0,0.00051474,2]
[325188179,1714559441278,-203.8574549,0.00051512,2]
[325188180,1714559441287,-203.8574549,0.00051512,2]
[325188181,1714559441297,-190.3804018,0.00051512,2]
[325188182,1714559441306,-153.0,0.00051512,2]
[325188183,1714559441315,-393.3289929,0.00051512,2]
[325188184,1714559441324,-153.0,0.00051512,2]
[325188185,1714559441334,-153.0,0.00051512,2]
[325188186,1714559441342,-153.0,0.00051512,30]
[325188187,1714559441352,-153.0,0.00051512,2]